Cogmind - Beta 17 @@@ ROGUE MODE // 2026.07.25 @ 22:43:24 Player: teag2 Result: Destroyed by 0Z-WZC(R) with Subdweller Machine Gun Performance ------------- Evolutions (0) 0 Regions Visited (2) 400 Robots Destroyed (19) 95 Value Destroyed (571) 571 Prototype IDs (0) 0 Alien Tech Used (0) 0 Bonus (0) 0 TOTAL SCORE: 1066 Bonus ------- None Cogmind --------- Core Integrity 0/250 Matter 261/300 Energy 248/250 System Corruption 0% Temperature Cool (0) Movement Treading (320) Ox2 Location -10/Subcaves Parts ------- > --- POWER (1) -------- Ion Engine > --- PROPULSION (2) --- Light Treads Light Treads > --- UTILITY (2) ------ Huge Storage Unit Light Armor Plating > --- WEAPON (2) ------- Beam Cannon Light Assault Rifle > --- INVENTORY (25) --- Neutrino Core Light Treads Aluminum Leg Aluminum Leg Compact Wheel Compact Wheel Improved Heat Sink Scrap Shield Particle Gun Beam Cannon Beam Cannon Beam Cannon Light Assault Rifle Peak State ------------ > --- POWER ------------ Light Nuclear Core > --- PROPULSION ------- Light Treads Light Treads > --- UTILITY ---------- Heat Sink Huge Storage Unit > --- WEAPON ----------- Beam Cannon Light Cannon > --- INVENTORY -------- Ion Engine Light Treads Aluminum Leg Aluminum Leg Compact Wheel Compact Wheel Improved Heat Sink Light Armor Plating Scrap Shield Particle Gun Beam Cannon Beam Cannon Beam Cannon Light Assault Rifle Light Assault Rifle [Rating: 11] Favorites ----------- Power Light Ion Engine Engine Light Ion Engine Power Core Light Nuclear Core Propulsion Light Treads Treads Light Treads Leg Aluminum Leg Utility Heat Sink Device Heat Sink Storage Huge Storage Unit Protection Light Armor Plating Weapon Light Assault Rifle Energy Cannon Beam Cannon Ballistic Gun Light Assault Rifle Ballistic Cannon Light Cannon Build | -11 -10 -10 ------- Run | Yrd Mat Sub Slots Evolved . | . . . Power . | . . . Propulsion . | . . . Utility . | . . . Weapon . | . . . Parts Attached 14 | 2 7 5 Power 3 | . 1 2 Engine 2 | . 1 1 Core 1 | . . 1 Reactor . | . . . Propulsion 4 | 2 2 . Treads 2 | 2 . . Leg 2 | . 2 . Wheel . | . . . Hover . | . . . Flight . | . . . Utility 3 | . 2 1 Device 1 | . 1 . Storage 1 | . 1 . Processor . | . . . Hackware . | . . . Protection 1 | . . 1 Artifact . | . . . Weapon 4 | . 2 2 Energy Gun . | . . . Energy Cannon 2 | . 1 1 Ballistic Gun 1 | . 1 . Ballistic Cannon 1 | . . 1 Launcher . | . . . Special Weapon . | . . . Impact Weapon . | . . . Slashing Weapon . | . . . Piercing Weapon . | . . . Special Melee Weapon . | . . . Unidentified Prototypes . | . . . Parts Lost 5 | . 2 3 Power 3 | . 1 2 Propulsion . | . . . Utility . | . . . Weapon 2 | . 1 1 Highest Loss Streak 2 | . 2 2 To Critical Strikes . | . . . Average Backups 12 | 6 12 13 Power 1 | 1 1 1 Propulsion 4 | 4 4 5 Utility 1 | . 1 2 Weapon 5 | 1 6 5 Tool/Special . | . . . Unused Backups 14 | . 5 9 Power 2 | . 1 1 Propulsion 3 | . . 3 Utility 4 | . 2 2 Weapon 5 | . 2 3 Tool/Special . | . . . Average Slot Usage (%) 99 | . 99 97 Engine 13 | . 14 11 Treads 26 | . 26 28 Leg 1 | . 1 . Device 13 | . 13 2 Storage 14 | . 14 14 Energy Cannon 7 | . 6 14 Ballistic Gun 20 | . 21 7 Peak Build Rating 11 | 6 9 11 Average Rating 8 | 6 7 9 On Entrance 7 | 6 6 9 Avg Prop Armor Cover (%) . | . . . Naked Turns . | . . . Heaviest Build 92 | 11 88 92 Greatest Support 40 | 40 40 40 Greatest Overweight (x) 2 | . 2 2 Average Overweight (x) 1 | . 1 2 Largest Inventory Capacity 25 | 8 25 25 Average Capacity 23 | 8 23 25 Most Carried 17 | 6 15 17 Average Carried 13 | 5 12 14 Final Capacity 25 | 8 25 25 Final Carried 15 | 6 15 14 Class Distribution -------------------- 100% | Mutant Dominant Class ---------------- Mutant | -10/Materials Mutant | -10/Subcaves Resources | -11 -10 -10 ----------- Run | Yrd Mat Sub Matter Collected 556 | 200 294 62 Remotely . | . . . Salvage Created 684 | . 523 161 Parts 44 | . 37 7 Haulers Intercepted . | . . . Recyclers Shooed . | . . . Parts Field Recycled . | . . . Retrieved Matter . | . . . Parts Self-Destructed 10 | . . 10 Prevented . | . . . Parts Restored . | . . . Kills | -11 -10 -10 ------- Run | Yrd Mat Sub Combat Hostiles Destroyed 13 | . 9 4 Guns 8 | . 8 . Cannons 5 | . 1 4 Classes Destroyed 5 | . 4 1 Worker 2 | . 2 . Operator 1 | . 1 . Watcher 3 | . 3 . Grunt 9 | . 9 . Subdweller 4 | . . 4 Best Kill Streak 3 | . 3 3 Combat Bots Only 3 | . 2 3 Max Kills in Single Turn 2 | . 2 1 Gunslinging . | . . . Exploded . | . . . Melee . | . . . Uniques/NPCs Destroyed . | . . . Combat | -11 -10 -10 -------- Run | Yrd Mat Sub Hostile Shots Fired 76 | . 45 31 Missed 17 | . 11 6 Hits 59 | . 34 25 Projectile 59 | . 34 25 Damage Taken 965 | . 425 540 Core 267 | . 61 206 Absorbed by Shields . | . . . Core Remaining (%) 100 | 100 . . Volleys Fired 83 | . 60 23 Largest 2 | . 2 2 Hottest 90 | . 80 90 Shots Fired 157 | . 120 37 Gun 106 | . 106 . Cannon 51 | . 14 37 Launcher . | . . . Special . | . . . Kinetic 120 | . 106 14 Thermal 37 | . 14 23 Explosive . | . . . Electromagnetic . | . . . Robot Hit Streak 11 | . 9 11 Robot Miss Streak 5 | . 5 4 Penetration Max . | . . . Secondary Targets 1 | . 1 . Max Gunslinging Chain 1 | . 1 . Shots Hit Robots 89 | . 66 23 Core Hits 36 | . 29 7 Critical Kills . | . . . Critical Parts Destroyed . | . . . Critical Strikes 1 | . . 1 Blast 1 | . . 1 Melee Attacks . | . . . Impact . | . . . Slashing . | . . . Piercing . | . . . Sneak Attacks . | . . . Combat Hostiles . | . . . Follow-up Attacks . | . . . Damage Inflicted 1206 | . 807 399 Guns 618 | . 618 . Cannons 575 | . 176 399 Explosions . | . . . Melee . | . . . Ramming 13 | . 13 . Kinetic 822 | . 618 204 Thermal 371 | . 176 195 Explosive . | . . . Electromagnetic . | . . . Impact . | . . . Slashing . | . . . Piercing . | . . . Highest Corruption . | . . . Average Corruption . | . . . Corruption Purged . | . . . Corruption Blocked . | . . . Overload Shots . | . . . Overflow Damage . | . . . Projectiles . | . . . Explosions . | . . . Melee . | . . . Knockbacks 1 | . . 1 Impact . | . . . Kinetic 1 | . . 1 Secondary . | . . . Self-Inflicted Damage . | . . . Shots . | . . . Rammed 2 | . 2 . Targets Rammed 2 | . 2 . Kicked . | . . . Crushed . | . . . Highest Temperature 58 | . 58 . Average Temperature 21 | . 21 . Received Heat Transfer 258 | . 246 12 Siege Activations . | . . . Martial Activations . | . . . Shielding Activations . | . . . Robots Disrupted . | . . . Combat Hostiles . | . . . Robots Corrupted . | . . . Combat Hostiles . | . . . Parts Fried . | . . . Impact Corruptions . | . . . Robots Melted . | . . . Combat Hostiles . | . . . Parts Melted . | . . . Heat Transferred 777 | . 370 407 Parts Sabotaged . | . . . Parts Stolen . | . . . Parts Stripped . | . . . Power Chain Reactions . | . . . Alert | -11 -10 -10 ------- Run | Yrd Mat Sub Maximum Alert Level . | . . . Low Security (%) 100 | 100 100 . Level 1 . | . . . Level 2 . | . . . Level 3 . | . . . Level 4 . | . . . Level 5 . | . . . High Security . | . . . Max Security . | . . . Peak Influence 70 | . 70 . Initial . | . . . Average 7 | . 7 . Influence Increases 334 | . 334 . Destroy 0b10 Robot/C 180 | . 180 . Destroy 0b10 Robot/NC 30 | . 30 . Destroy Leader 56 | . 56 . Successful Hack 23 | . 23 . Select Force Hacks 30 | . 30 . Lose Combat Pursuer 15 | . 15 . Influence Decreases 334 | . 334 . Time Decay 325 | . 325 . Lost Part 9 | . 9 . Squads Dispatched 2 | . 2 . Investigation 1 | . 1 . Extermination . | . . . Reinforcement 1 | . 1 . Assault . | . . . Garrison . | . . . Intercept . | . . . Searches Triggered . | . . . Construction Impeded . | . . . Haulers Reinforced . | . . . Active Scanning Responses . | . . . Cargo Convoy Interrupts . | . . . Stealth | -11 -10 -10 --------- Run | Yrd Mat Sub Distress Signals 2 | . 2 . Communications Jammed . | . . . Distress Signals . | . . . Times Spotted 29 | . 24 5 Peak Tracking Total 4 | . 3 4 Tactical Retreats 1 | . 1 . Traps | -11 -10 -10 ------- Run | Yrd Mat Sub Traps Triggered . | . . . Indirectly . | . . . Trap Hack Attempts . | . . . Triggered . | . . . Disarmed . | . . . Reprogrammed . | . . . Reused . | . . . Traps Extracted . | . . . Installed . | . . . Triggered . | . . . Machines | -11 -10 -10 ---------- Run | Yrd Mat Sub Machines Disabled . | . . . Max in Single Turn . | . . . Machines Repaired . | . . . Machines Dismantled . | . . . Machines Sabotaged . | . . . Overloaded Fab Kills . | . . . Hacking | -11 -10 -10 --------- Run | Yrd Mat Sub Machines Accessed 7 | . 7 . Terminals 6 | . 6 . Fabricators . | . . . Repair Stations . | . . . Recycling Units 1 | . 1 . Scanalyzers . | . . . Garrison Access . | . . . Total Hacks 16 | . 16 . Successful 11 | . 11 . Failed 5 | . 5 . Catastrophic . | . . . Database Lockouts . | . . . Manual 16 | . 16 . Terminals 15 | . 15 . Fabricators . | . . . Repair Stations . | . . . Recycling Units 1 | . 1 . Scanalyzers . | . . . Garrison Access . | . . . Terminal Hacks 2 | . 2 . Part Schematic 1 | . 1 . Recycling Unit Index 1 | . 1 . Fabricator Hacks . | . . . Repair Station Hacks . | . . . Recycling Unit Hacks . | . . . Scanalyzer . | . . . Garrison Access Hacks . | . . . Unauthorized Hacks 9 | . 9 . Terminals 8 | . 8 . Assimilate 1 | . 1 . Botnet 1 | . 1 . Operators 1 | . 1 . Skim 5 | . 5 . Fabricators . | . . . Repair Stations . | . . . Recycling Units 1 | . 1 . Tunnel 1 | . 1 . Scanalyzers . | . . . Garrison Access . | . . . Data Cores Recovered . | . . . Used . | . . . Hacking Detections 5 | . 5 . Full Trace Events . | . . . Feedback Events . | . . . Feedback Blocked . | . . . Robot Schematics Acquired . | . . . Robots Built . | . . . Authchips . | . . . Time . | . . . Total Robot Build Rating . | . . . Part Schematics Acquired 1 | . 1 . Parts Built . | . . . Authchips . | . . . Time . | . . . Total Part Build Rating . | . . . Part Studies Acquired . | . . . Parts Repaired . | . . . Time . | . . . Parts Recycled . | . . . Recycled Matter . | . . . Retrieved Matter . | . . . Retrieved Components . | . . . Parts Scanalyzed . | . . . Part Schematics Acquired . | . . . Parts Damaged . | . . . Bothacking | -11 -10 -10 ------------ Run | Yrd Mat Sub Used RIF Installer . | . . . Robots Hacked . | . . . Non-combat . | . . . Combat . | . . . Robot Hacks Applied . | . . . Relay Couplers Released . | . . . Fabnet Peak Effective % . | . . . Robots Rewired . | . . . Allies Hacked . | . . . Hacks Repelled . | . . . Allies | -11 -10 -10 -------- Run | Yrd Mat Sub Total Allies 1 | . 1 . Largest Group 1 | . 1 1 Highest-Rated Group 10 | . 10 10 Highest-Rated Ally 10 | . 10 10 Total Orders . | . . . Ally Attacks . | . . . Total Damage . | . . . Kills . | . . . Allies Corrupted . | . . . Allies Melted . | . . . Intel | -11 -10 -10 ------- Run | Yrd Mat Sub Active Infowar (turns) . | . . . Robot Analysis Total . | . . . Derelict Logs Recovered . | . . . Drone Launches . | . . . Drone Recoveries . | . . . Exploration | -11 -10 -10 ------------- Run | Yrd Mat Sub Turns Passed 3261 | 9 3064 188 Spaces Moved 926 | 4 885 37 Core . | . . . Treads 826 | 1 788 37 Legs 100 | 3 97 . Wheels . | . . . Hover . | . . . Flight . | . . . Fastest Speed 120 | 120 120 320 Average Speed 297 | 130 297 320 Slowest Speed 320 | 160 320 320 Overloaded Moves . | . . . Propulsion Burnouts . | . . . Robots Hopped . | . . . Potential Cave-ins . | . . . Cave-ins Triggered . | . . . Exploration Rate (%) 33 | 2 96 3 Regions Visited 2 Branch Regions 1 Pre-discovered Areas 1 | . 1 . Known Exits Taken . | . . . Unknown Exits Taken 2 | 1 1 . Scrap Searched . | . . . Spaces Dug . | . . . Terrain Destroyed . | . . . Melee . | . . . Projectile . | . . . AOE . | . . . Terrain Rammed . | . . . Walls Destroyed . | . . . Machines Disabled . | . . . Actions | -11 -10 -10 --------- Run | Yrd Mat Sub Total 1277 | 7 1201 69 Wait 232 | . 232 . Move 924 | 3 884 37 Hop . | . . . Pick Up 16 | 1 13 2 Fast Attach . | . . . Attach 6 | . 3 3 Detach . | . . . Swap 11 | 2 6 3 Drop 3 | 1 1 1 Fire 83 | . 60 23 Melee . | . . . Ram . | . . . Kick . | . . . Crush 2 | . 2 . Escape Stasis . | . . . Rewire . | . . . Trap . | . . . Miscellaneous . | . . . Route ------- -11/Scrapyard -10/Materials (discovered 6 exits: *Mat x3 / [*Min x2] / [*Sub]) -10/Subcaves History --------- Turn | Location | Event 1 | -11/Scrapyard | Discovered new exit (range 1) 10 | -11/Scrapyard | Entered Materials 309 | -10/Materials | Build established: Mutant 380 | -10/Materials | Discovered new exit (range 13) 692 | -10/Materials | Discovered new exit (range 11) 873 | -10/Materials | Discovered new exit (range 8) 1688 | -10/Materials | Discovered new exit (range 16) 2120 | -10/Materials | Discovered new exit (range 13) 2217 | -10/Materials | Learned Storage security intel 2274 | -10/Materials | Learned location of 2 exits from Mines 2321 | -10/Materials | Loaded intel: 1 recycling unit location 2357 | -10/Materials | Identified exit to Materials 2383 | -10/Materials | Learned 4 Subcaves zone layouts 3074 | -10/Materials | Entered Subcaves 3074 | -10/Subcaves | Accompanied by 1 ally 3092 | -10/Subcaves | Core integrity fell below 50% 3109 | -10/Subcaves | Core integrity fell below 20% 3262 | -10/Subcaves | Destroyed by 0Z-WZC(R) with Subdweller Machine Gun Last Messages --------------- Shield. DF-GSM(R) destroyed. PE-GC0(R) suffers critical hit (Blast). PE-GC0(R) destroyed. FZ-USH(R) knocked back. Subatomizers dissect the Targeting Computer. FZ-USH(R) affixes Scrap Shield Fragment to Scrap Shield. Lgt. Cannon destroyed. Subatomizers dissect the Targeting Computer. Lgt. Nuclear Core destroyed. FZ-USH(R) destroyed. Dropped Heat Sink. Subatomizers dissect the Targeting Computer. Acquired Neutrino Core. Acquired 62 matter. Subatomizers dissect the Targeting Computer. Subatomizers dissect the Heat Sink, destroying it. Map ----- +----------------------------------------------------+ | | | | | | | | | | | | | | | ?????????????????????????????????????????????????? | | ?????????????????????????????????????????????????? | | ???????????????????????????????????????#########?? | | ???????????????????????????????????????# "#"""""?? | | ???????????????????????????????????????# " "X" ?? | | ???????????????????????????????????????### ?? | | ??????????????????????????????????????#### ?? | | ??????????????????????????????????????#"########?? | | ??????????????????????????????????????# ??######?? | | ???????????????????????#??????????????#" ""#####?? | | ???????????????????????#??????????????#? #?? | | ???????????????????????#????????????????""## ?? | | ??????????????????#????#?????????????????## ##?? | | ??????????????????# ?###???????????????#### "#?? | | ?????????????????### # ###??????####?#### " ?? | | ?????????????????# < R ####???# ### """ ?? | | ?????????????# # # ## #???# "## """##### ?? | | ????????? #???# "## """ #?##?? | | ????????? ## @ #??## ""#####" #??#?? | | ?????????????????????### # #### "" ##### ####?? | | ??????????????????????# ## "" ## # ?? | | ??????????????????????## ## """" ## ?? | | ???????????????????????# ## ## """""""###" ?? | | ??????????????????????## ## #### """"""""""" ?? | | ??????????????????????# #!= # # ""### "" ?? | | ?????????????????????## % %% ####?????????? | | ?????????????????????# * / % """""#????????? | | ?????????????????????# &&# #"""" #????????? | | ?????????????????????# %=#####""% #????????? | | ?????????????????????# !&%%%"" ??????? | | ?????????????????????# &%&=% ### ??????? | | ?????????????????????## ### &###% #??# ??????? | | ??????????????????????##??####???###???###???????? | | ?????????????????????????????????????????????????? | | ?????????????????????????????????????????????????? | | ?????????????????????????????????????????????????? | | ?????????????????????????????????????????????????? | | ?????????????????????????????????????????????????? | | ?????????????????????????????????????????????????? | | ?????????????????????????????????????????????????? | | ?????????????????????????????????????????????????? | | ?????????????????????????????????????????????????? | | ?????????????????????????????????????????????????? | +----------------------------------------------------+ Best States ------------- Heat Dissipation 35 Energy Generation 14 Energy Capacity 250 Matter Stores 300 Matter Capacity 300 Sight Range 16 Terrain Scan Density 10 Armor Coverage 150 Evasion (%) 55 Recoil Reduction 2 Item Schematics ----------------- Hcp. Storage Unit | -10/Materials | Hacked Robot Schematics ------------------ None Fabricated ------------ Nothing Repaired ---------- Nothing Studied --------- None Alien Tech Used ----------------- None Achievements -------------- None Challenges ------------ None Game ------ Seed AuthchipScrapMaul Manual? 0 Play Time 00:13:03 Cumulative 70.5 hours Start 2026.07.25 @ 14:30:40 End 2026.07.25 @ 22:43:24 Sessions 4 Manual Loads 0 Difficulty Rogue Special Mode None Game No. 48 Rogue 47 Adventurer 1 Explorer 0 Win Type - Total 4 Types 3/0/0/1/0/0/0/0/0/0 Lore% 42 Gallery% 47 Achievement% 47 Wizard Run 0 Options --------- Layout 1 ASCII 0 Keyboard 0 Movement Numpad Keybinds 0 Fullscreen 1 Font 32/SmallcapsGlow Map View 50x35 Zoom Use 0% Tactical HUD 0 Map Filters NONE Filters NONE Steam 1 RUN: d178c3c8-e1eb-49bb-b9d9-c51cd0cba0a2